Cogmind - Beta 10.2 @@@ ROGUE MODE // 2021.03.24 @ 11:31:41 Player: ChromeKnight Result: Self-destructed Performance ------------- Evolutions (2) 1000 Regions Visited (7) 1400 Robots Destroyed (5) 25 Value Destroyed (65) 65 Prototype IDs (25) 500 Alien Tech Used (0) 0 Bonus (702) 702 TOTAL SCORE: 3692 Bonus ------- Pacifist 200 Follower Combat Kills 202 Aligned with FarCom 300 Cogmind --------- Core Integrity 550/550 Matter 300/300 Energy 2125/2125 System Corruption 0% Temperature Cool (126) Movement Rolling (120) Ox2 Location -8/Materials Parts ------- > --- POWER (1) -------- Light Ion Engine > --- PROPULSION (2) --- Compact Wheel > --- UTILITY (6) ------ Large Storage Unit Superbattery Light Armor Plating Hardened Light Armor Plating > --- WEAPON (2) ------- Guided Plasma Cannon Heavy Assault Rifle > --- INVENTORY (10) --- Improved Flight Unit Improved Flight Unit Faulty Improved Flight Unit Improved Flight Unit Improved Flight Unit Improved Flight Unit Heat Sink Deploy-a-Sentry Deploy-a-Sentry Peak State ------------ > --- POWER ------------ Light Ion Engine > --- PROPULSION ------- Compact Wheel Compact Wheel > --- UTILITY ---------- Large Storage Unit Superbattery Light Armor Plating Hardened Light Armor Plating > --- WEAPON ----------- Guided Plasma Cannon Heavy Assault Rifle > --- INVENTORY -------- Improved Flight Unit Improved Flight Unit Improved Flight Unit Improved Flight Unit Improved Flight Unit Improved Flight Unit Heat Sink Deploy-a-Sentry Deploy-a-Sentry Deploy-a-Sentry [Rating: 31] Favorites ----------- Power Light Ion Engine Engine Light Ion Engine Propulsion Compact Wheel Wheel Compact Wheel Utility Large Storage Unit Storage Large Storage Unit Protection Hardened Light Armor Plating Weapon Heavy Assault Rifle Energy Gun Small Laser Energy Cannon Guided Plasma Cannon Ballistic Gun Heavy Assault Rifle Build | -11 -10 -10 -9 -9 -9 -8 -8 ------- Run | Scr Mat Min Mat Min Exi Min Mat Slots Evolved 4 | . . . 2 . . . 2 Power . | . . . . . . . . Propulsion . | . . . . . . . . Utility 4 | . . . 2 . . . 2 Weapon . | . . . . . . . . Parts Attached 15 | 6 3 . 4 . 2 . . Power 1 | 1 . . . . . . . Engine 1 | 1 . . . . . . . Core . | . . . . . . . . Reactor . | . . . . . . . . Propulsion 2 | 2 . . . . . . . Treads . | . . . . . . . . Leg . | . . . . . . . . Wheel 2 | 2 . . . . . . . Hover . | . . . . . . . . Flight . | . . . . . . . . Utility 5 | 1 1 . 2 . 1 . . Device . | . . . . . . . . Storage 3 | 1 1 . . . 1 . . Processor . | . . . . . . . . Hackware . | . . . . . . . . Protection 2 | . . . 2 . . . . Artifact . | . . . . . . . . Weapon 7 | 2 2 . 2 . 1 . . Energy Gun 2 | 2 . . . . . . . Energy Cannon 1 | . . . . . 1 . . Ballistic Gun 4 | . 2 . 2 . . . . Ballistic Cannon . | . . . . . . . . Launcher . | . . . . . . . . Special Weapon . | . . . . . . . . Impact Weapon . | . . . . . . . . Slashing Weapon . | . . . . . . . . Piercing Weapon . | . . . . . . . . Special Melee Weapon . | . . . . . . . . Unidentified Prototypes . | . . . . . . . . Parts Lost 1 | . . . . . . . 1 Power . | . . . . . . . . Propulsion 1 | . . . . . . . 1 Utility . | . . . . . . . . Weapon . | . . . . . . . . Highest Loss Streak 1 | . . . . . . . 1 Average Slot Usage (%) 87 | . 84 85 83 88 91 100 78 Engine 11 | . 14 14 11 11 11 11 9 Wheel 22 | . 28 28 22 22 22 22 15 Storage 13 | . 14 14 11 11 14 22 18 Protection 16 | . . . 17 22 22 22 18 Energy Gun 1 | . 7 . . . . . . Energy Cannon 1 | . . . . . 3 11 9 Ballistic Gun 19 | . 19 28 21 22 18 11 9 Naked Turns . | . . . . . . . . Heaviest Build 44 | 10 25 25 33 33 44 44 44 Greatest Support 32 | 32 32 32 32 32 32 32 32 Greatest Overweight (x) 2 | . . . 1 1 1 1 2 Average Overweight (x) . | . . . . 1 1 1 1 Largest Inventory Capacity 12 | 6 12 10 10 10 10 10 10 Average Capacity 9 | 5 9 10 10 10 10 10 10 Most Carried 10 | 1 3 3 10 10 10 10 9 Average Carried 7 | . 2 3 6 10 9 9 9 Final Capacity 10 | 6 10 10 10 10 10 10 10 Final Carried 10 | 1 3 3 10 10 10 9 9 Class Distribution -------------------- 100% | Mutant Dominant Class ---------------- Mutant | -10/Materials Mutant | -10/Mines Mutant | -9/Materials Mutant | -9/Mines Mutant | -9/Exiles Mutant | -8/Mines Mutant | -8/Materials Resources | -11 -10 -10 -9 -9 -9 -8 -8 ----------- Run | Scr Mat Min Mat Min Exi Min Mat Matter Collected 467 | 227 . 14 178 28 . 20 . Remotely . | . . . . . . . . Salvage Created 239 | . . . 227 . . 12 . Parts 15 | . . . 15 . . . . Haulers Intercepted 2 | . . . 2 . . . . Recyclers Shooed . | . . . . . . . . Parts Field Recycled . | . . . . . . . . Retrieved Matter . | . . . . . . . . Parts Self-Destructed . | . . . . . . . . Prevented . | . . . . . . . . Kills | -11 -10 -10 -9 -9 -9 -8 -8 ------- Run | Scr Mat Min Mat Min Exi Min Mat Combat Hostiles Destroyed 2 | . . . 1 . . 1 . Guns 1 | . . . 1 . . . . Cannons 1 | . . . . . . 1 . Classes Destroyed 4 | . . . 3 . . 1 . Hauler 2 | . . . 2 . . . . Recycler 1 | . . . 1 . . . . Swarmer 1 | . . . . . . 1 . Sentry 1 | . . . 1 . . . . Best Kill Streak 2 | . . . 2 . . 1 . Combat Bots Only 1 | . . . 1 . . 1 . Max Kills in Single Turn 1 | . . . 1 . . 1 . Gunslinging . | . . . . . . . . Exploded . | . . . . . . . . Melee . | . . . . . . . . Uniques/NPCs Destroyed . | . . . . . . . . Combat | -11 -10 -10 -9 -9 -9 -8 -8 -------- Run | Scr Mat Min Mat Min Exi Min Mat Damage Taken 304 | . . . 59 31 . 142 72 Core 70 | . . . 12 15 . 43 . Absorbed by Shields . | . . . . . . . . Core Remaining (%) 94 | 100 . 100 . . . 82 . Volleys Fired 24 | . . . 16 . . 5 3 Largest 2 | . . . 2 . . 1 1 Hottest 120 | . . . 46 . . 120 120 Shots Fired 40 | . . . 32 . . 5 3 Gun 32 | . . . 32 . . . . Cannon 8 | . . . . . . 5 3 Launcher . | . . . . . . . . Special . | . . . . . . . . Kinetic 32 | . . . 32 . . . . Thermal 8 | . . . . . . 5 3 Explosive . | . . . . . . . . Electromagnetic . | . . . . . . . . Robot Hit Streak 11 | . . . 6 . . 8 11 Robot Miss Streak 5 | . . . 5 . . . . Penetration Max . | . . . . . . . . Secondary Targets . | . . . . . . . . Shots Hit Robots 25 | . . . 17 . . 5 3 Core Hits 9 | . . . 7 . . 1 1 Critical Hits . | . . . . . . . . Critical Kills . | . . . . . . . . Critical Parts Destroyed . | . . . . . . . . Melee Attacks . | . . . . . . . . Impact . | . . . . . . . . Slashing . | . . . . . . . . Piercing . | . . . . . . . . Sneak Attacks . | . . . . . . . . Combat Hostiles . | . . . . . . . . Follow-up Attacks . | . . . . . . . . Damage Inflicted 545 | . . . 257 . . 181 107 Guns 257 | . . . 257 . . . . Cannons 288 | . . . . . . 181 107 Explosions . | . . . . . . . . Melee . | . . . . . . . . Ramming . | . . . . . . . . Kinetic 257 | . . . 257 . . . . Thermal 288 | . . . . . . 181 107 Explosive . | . . . . . . . . Electromagnetic . | . . . . . . . . Impact . | . . . . . . . . Slashing . | . . . . . . . . Piercing . | . . . . . . . . Highest Corruption . | . . . . . . . . Average Corruption . | . . . . . . . . Corruption Purged . | . . . . . . . . Overload Shots . | . . . . . . . . Overflow Damage 16 | . . . . . . 16 . Projectiles 16 | . . . . . . 16 . Explosions . | . . . . . . . . Melee . | . . . . . . . . Knockbacks . | . . . . . . . . Impact . | . . . . . . . . Kinetic . | . . . . . . . . Secondary . | . . . . . . . . Self-Inflicted Damage . | . . . . . . . . Shots . | . . . . . . . . Rammed . | . . . . . . . . Targets Rammed . | . . . . . . . . Kicked . | . . . . . . . . Crushed . | . . . . . . . . Highest Temperature 450 | . . . 32 . . 450 252 Average Temperature 123 | . . . 9 . . 223 169 Received Heat Transfer 63 | . . . 18 9 . . 36 Effects 2 | . . . . . . 1 1 Shutdowns 1 | . . . . . . 1 . Interference 1 | . . . . . . . 1 Siege Activations . | . . . . . . . . Robots Corrupted . | . . . . . . . . Combat Hostiles . | . . . . . . . . Parts Fried . | . . . . . . . . Impact Corruptions . | . . . . . . . . Robots Melted . | . . . . . . . . Combat Hostiles . | . . . . . . . . Parts Melted 1 | . . . . . . 1 . Heat Transferred 640 | . . . . . . 400 240 Parts Sabotaged . | . . . . . . . . Parts Stolen . | . . . . . . . . Parts Stripped . | . . . . . . . . Power Chain Reactions . | . . . . . . . . Missiles Intercepted . | . . . . . . . . Alert | -11 -10 -10 -9 -9 -9 -8 -8 ------- Run | Scr Mat Min Mat Min Exi Min Mat Peak Influence 310 | . 25 39 310 224 . 75 29 Initial 120 | . . 9 24 120 . . 29 Average 95 | . 14 10 137 221 . 62 25 Maximum Alert Level 1 | . . . 1 1 . . . Low Security (%) 78 | 100 100 100 81 1 . 100 100 Level 1 21 | . . . 18 98 . . . Level 2 . | . . . . . . . . Level 3 . | . . . . . . . . Level 4 . | . . . . . . . . Level 5 . | . . . . . . . . High Security . | . . . . . . . . Max Security . | . . . . . . . . Squads Dispatched 2 | . . . 2 . . . . Investigation . | . . . . . . . . Extermination . | . . . . . . . . Reinforcement 2 | . . . 2 . . . . Assault . | . . . . . . . . Garrison . | . . . . . . . . Intercept . | . . . . . . . . Construction Impeded . | . . . . . . . . Haulers Reinforced . | . . . . . . . . Stealth | -11 -10 -10 -9 -9 -9 -8 -8 --------- Run | Scr Mat Min Mat Min Exi Min Mat Distress Signals 2 | . . . 2 . . . . Communications Jammed . | . . . . . . . . Distress Signals . | . . . . . . . . Times Spotted 22 | . . 1 11 4 . 3 3 Peak Tracking Total 4 | . . 2 3 4 . 3 3 Tactical Retreats 1 | . . 1 . . . . . Traps | -11 -10 -10 -9 -9 -9 -8 -8 ------- Run | Scr Mat Min Mat Min Exi Min Mat Traps Triggered . | . . . . . . . . Indirectly . | . . . . . . . . Trap Hack Attempts . | . . . . . . . . Triggered . | . . . . . . . . Disarmed . | . . . . . . . . Reprogrammed . | . . . . . . . . Reused . | . . . . . . . . Traps Extracted . | . . . . . . . . Installed . | . . . . . . . . Triggered . | . . . . . . . . Exploded 2 | . . . . . 2 . . Machines | -11 -10 -10 -9 -9 -9 -8 -8 ---------- Run | Scr Mat Min Mat Min Exi Min Mat Machines Disabled . | . . . . . . . . Max in Single Turn . | . . . . . . . . Machines Sabotaged . | . . . . . . . . Garrisons Compromised . | . . . . . . . . Overloaded Fab Kills . | . . . . . . . . Fab Network Shutdowns . | . . . . . . . . Hacking | -11 -10 -10 -9 -9 -9 -8 -8 --------- Run | Scr Mat Min Mat Min Exi Min Mat Machines Accessed 6 | . 3 . 2 . 1 . . Terminals 5 | . 3 . 2 . . . . Fabricators . | . . . . . . . . Repair Stations . | . . . . . . . . Recycling Units . | . . . . . . . . Scanalyzers . | . . . . . . . . Garrison Access . | . . . . . . . . Total Hacks 16 | . 11 . 4 . 1 . . Successful 5 | . 4 . . . 1 . . Failed 11 | . 7 . 4 . . . . Catastrophic . | . . . . . . . . Database Lockouts . | . . . . . . . . Manual 11 | . 6 . 4 . 1 . . Terminals 15 | . 11 . 4 . . . . Fabricators . | . . . . . . . . Repair Stations . | . . . . . . . . Recycling Units . | . . . . . . . . Scanalyzers . | . . . . . . . . Garrison Access . | . . . . . . . . Terminal Hacks 4 | . 3 . . . 1 . . Prototype ID Bank 1 | . 1 . . . . . . Branch Access Points 1 | . 1 . . . . . . Recycling Unit Index 1 | . 1 . . . . . . EX-Prototype ID Bank 1 | . . . . . 1 . . Fabricator Hacks . | . . . . . . . . Repair Station Hacks . | . . . . . . . . Recycling Unit Hacks . | . . . . . . . . Scanalyzer . | . . . . . . . . Garrison Access Hacks . | . . . . . . . . Unauthorized Hacks 1 | . 1 . . . . . . Terminals 1 | . 1 . . . . . . Operators 1 | . 1 . . . . . . Fabricators . | . . . . . . . . Repair Stations . | . . . . . . . . Recycling Units . | . . . . . . . . Scanalyzers . | . . . . . . . . Garrison Access . | . . . . . . . . Data Cores Recovered . | . . . . . . . . Used . | . . . . . . . . Hacking Detections 5 | . 3 . 2 . . . . Full Trace Events . | . . . . . . . . Feedback Events . | . . . . . . . . Feedback Blocked . | . . . . . . . . Robot Schematics Acquired . | . . . . . . . . Robots Built . | . . . . . . . . Matter . | . . . . . . . . Time . | . . . . . . . . Total Robot Build Rating . | . . . . . . . . Part Schematics Acquired . | . . . . . . . . Parts Built . | . . . . . . . . Matter . | . . . . . . . . Time . | . . . . . . . . Total Part Build Rating . | . . . . . . . . Parts Repaired . | . . . . . . . . Time . | . . . . . . . . Parts Recycled . | . . . . . . . . Recycled Matter . | . . . . . . . . Retrieved Matter . | . . . . . . . . Retrieved Components . | . . . . . . . . Parts Scanalyzed . | . . . . . . . . Part Schematics Acquired . | . . . . . . . . Parts Damaged . | . . . . . . . . Bothacking | -11 -10 -10 -9 -9 -9 -8 -8 ------------ Run | Scr Mat Min Mat Min Exi Min Mat Used RIF Installer . | . . . . . . . . Robots Hacked . | . . . . . . . . Non-combat . | . . . . . . . . Combat . | . . . . . . . . Robot Hacks Applied . | . . . . . . . . Relay Couplers Released . | . . . . . . . . Robots Rewired . | . . . . . . . . Allies Hacked . | . . . . . . . . Hacks Repelled . | . . . . . . . . Allies | -11 -10 -10 -9 -9 -9 -8 -8 -------- Run | Scr Mat Min Mat Min Exi Min Mat Total Allies 3 | . . 3 . . . . . Largest Group 3 | . . 3 3 3 3 . . Highest-Rated Group 40 | . . 40 40 40 40 . . Highest-Rated Ally 16 | . . 16 16 16 16 . . Total Orders . | . . . . . . . . Ally Attacks 63 | . . 5 44 9 2 3 . Total Damage 698 | . . 37 468 79 13 101 . Kills 14 | . . 1 7 4 . 2 . Allies Corrupted . | . . . . . . . . Allies Melted . | . . . . . . . . Turrets Deployed 1 | . . . . . . 1 . Intel | -11 -10 -10 -9 -9 -9 -8 -8 ------- Run | Scr Mat Min Mat Min Exi Min Mat Robot Analysis Total . | . . . . . . . . Derelict Logs Recovered 1 | . . . . 1 . . . Drone Launches . | . . . . . . . . Drone Recoveries . | . . . . . . . . Exploration | -11 -10 -10 -9 -9 -9 -8 -8 ------------- Run | Scr Mat Min Mat Min Exi Min Mat Turns Passed 1141 | 55 152 63 318 113 346 59 35 Spaces Moved 938 | 47 139 39 245 90 308 45 25 Core 3 | 3 . . . . . . . Treads . | . . . . . . . . Legs . | . . . . . . . . Wheels 935 | 44 139 39 245 90 308 45 25 Hover . | . . . . . . . . Flight . | . . . . . . . . Fastest Speed 50 | 50 100 100 100 110 110 110 110 Average Speed 106 | 96 100 100 105 110 110 110 112 Slowest Speed 120 | 100 100 100 110 110 110 110 120 Overloaded Moves . | . . . . . . . . Propulsion Burnouts . | . . . . . . . . Robots Hopped . | . . . . . . . . Cave-ins Triggered . | . . . . . . . . Exploration Rate (%) 21 | 4 25 8 32 23 61 13 4 Regions Visited 7 Branch Regions 4 Pre-discovered Areas . | . . . . . . . . Known Exits Taken 1 | . 1 . . . . . . Unknown Exits Taken 6 | 1 . 1 1 1 1 1 . Scrap Searched 2 | . . 1 . 1 . . . Spaces Dug . | . . . . . . . . Terrain Destroyed . | . . . . . . . . Melee . | . . . . . . . . Projectile . | . . . . . . . . AOE . | . . . . . . . . Terrain Rammed . | . . . . . . . . Walls Destroyed . | . . . . . . . . Machines Disabled . | . . . . . . . . Actions | -11 -10 -10 -9 -9 -9 -8 -8 --------- Run | Scr Mat Min Mat Min Exi Min Mat Total 1040 | 53 152 63 274 104 316 50 28 Wait 46 | . 6 25 . 15 . . . Move 931 | 46 138 38 244 89 307 44 25 Hop . | . . . . . . . . Pick Up 13 | 1 2 . 7 . 3 . . Fast Attach 15 | 6 3 . 4 . 2 . . Attach . | . . . . . . . . Detach 1 | . . . 1 . . . . Swap . | . . . . . . . . Drop 10 | . 3 . 2 . 4 1 . Fire 24 | . . . 16 . . 5 3 Melee . | . . . . . . . . Ram . | . . . . . . . . Kick . | . . . . . . . . Crush . | . . . . . . . . Escape Stasis . | . . . . . . . . Rewire . | . . . . . . . . Trap . | . . . . . . . . Miscellaneous . | . . . . . . . . Route ------- -11/Scrapyard -10/Materials (discovered 2 exits: *Min x2) -10/Mines -9/Materials -9/Mines (discovered 2 exits: [*Mat] / *Exi) -9/Exiles -8/Mines -8/Materials (discovered 1 exit: Fac) History --------- Turn | Location | Event 28 | -11/Scrapyard | Discovered new exit (range 15) 56 | -11/Scrapyard | Entered Materials 145 | -10/Materials | Identified exit to Mines 208 | -10/Materials | Entered Mines 219 | -10/Mines | Discovered new exit (range 12) 230 | -10/Mines | Assisted by bots powering up and referring to "LRC-V3" 271 | -10/Mines | Entered Materials 271 | -9/Materials | Accompanied by 3 allies 271 | -9/Materials | Evolved 2 slots: Utility x2 308 | -9/Materials | Build established: Mutant 546 | -9/Materials | Discovered new exit (range 12) 589 | -9/Materials | Entered Mines 589 | -9/Mines | Accompanied by 3 allies 615 | -9/Mines | Discovered new exit (range 13) 628 | -9/Mines | Met a Derelict bent on vengeance 666 | -9/Mines | Learned 4 Materials zone layouts 681 | -9/Mines | Deemed a non-threat by the Exiles lab entrance 681 | -9/Mines | Discovered new exit (range 5) 702 | -9/Mines | Entered Exiles 702 | -9/Exiles | Accompanied by 3 allies 729 | -9/Exiles | Met 8R-AWN 749 | -9/Exiles | Met EX-HEX 778 | -9/Exiles | Met EX-BIN 838 | -9/Exiles | Aligned with FarCom system 839 | -9/Exiles | Given EX-Vault access code 865 | -9/Exiles | Opened EX-Vault 882 | -9/Exiles | Found Deploy-a-Sentry 884 | -9/Exiles | Found Deploy-a-Sentry 887 | -9/Exiles | Found Deploy-a-Sentry 914 | -9/Exiles | Warned to stay clear of 0b10 Research branches 915 | -9/Exiles | Exiles lab attacked by MAIN.C 938 | -9/Exiles | Found Superbattery 941 | -9/Exiles | Found Gui. Plasma Cannon 1038 | -9/Exiles | Discovered new exit (range 11) 1048 | -9/Exiles | Stole three prototypes: Deploy-a-Sentry, Superbattery, Gui. Plasma Cannon 1048 | -9/Exiles | Entered Mines 1060 | -8/Mines | DAS Turret deployed 1089 | -8/Mines | Discovered new exit (range 7) 1107 | -8/Mines | Entered Materials 1107 | -8/Materials | Evolved 2 slots: Utility x2 1108 | -8/Materials | Identified exit to Factory 1142 | -8/Materials | Self-destructed Last Messages --------------- 01058_ Dropped Deploy-a-Sentry. 01059_ Power failure, Lgt. Ion Engine shutdown. 01060_ DAS Turret deployed. 01061_ S-10 Pest suffers critical hit. 01061_ S-10 Pest destroyed. 01068_ Acquired 11 matter. 01072_ Acquired 9 matter. 01075_ U-05 Engineer builds a Wall. 01089_ EXIT=FOUND 01090_ K-01 Serf collects debris. 01095_ K-01 Serf cleans the Matter Pump. 01098_ K-01 Serf collects debris. PARAMETERS=UTILITY_2 LOCATION=UNKNOWN GOAL=ESCAPE 01107_ Receiving FarCom transmissions... Loading 4 Materials zones... 01130_ Com. Wheel destroyed. 01135_ Overheating: System interference. 01135_ Gui. Plasma Cannon temporarily disabled. Map ----- +----------------------------------------------------+ | | | | | | | | | | | | | | | | | | | | | | | | | | | | | | | | | ???????????????????????????????????????????????? | | ???????????????????????????????????????????????? | | ???????????????????????????????????????????????? | | ???????????????????????????????????????????????? | | ???????????????????????????######??????????????? | | ???????????????????######## ###### ????????? | | ???????????????????# ?????? | | ???????????????????# T g ?????? | | ???????????????????# gg ?????? | | ???????????????########@### ###????????????? | | ???????????????# #?##+###??????????????? | | ???????????????# """ """ #?????????????????????? | | ???????????????# """ """ #?????????????????????? | | ???????????????# """ """ #?????????????????????? | | ???????????????# #?????????????????????? | | ???????????????# #?????????????????????? | | ???????????????# ! #?????????????????????? | | ???????????????#] #?????????????????????? | | ???????????????###########?????????????????????? | | ???????????????????????????????????????????????? | | ???????????????????????????????????????????????? | | ???????????????????????????????????????????????? | | ???????????????????????????????????????????????? | | ???????????????????????????????????????????????? | | ???????????????????????????????????????????????? | | ???????????????????????????????????????????????? | | ???????????????????????????????????????????????? | | ???????????????????????????????????????????????? | | ???????????????????????????????????????????????? | | ???????????????????????????????????????????????? | | ???????????????????????????????????????????????? | | ???????????????????????????????????????????????? | | ???????????????????????????????????????????????? | | ???????????????????????????????????????????????? | +----------------------------------------------------+ Best States ------------- Heat Dissipation 31 Energy Generation 10 Energy Capacity 2125 Matter Stores 300 Matter Capacity 300 Sight Range 16 Terrain Scan Density 10 Armor Coverage 300 Evasion (%) 40 Item Schematics ----------------- None Robot Schematics ------------------ None Fabricated ------------ Nothing Alien Tech Used ----------------- None Achievements -------------- None Challenges ------------ None Game ------ Seed PotentialSwordRay Manual? 0 Play Time 00:09:02 Cumulative 86.5 hours Start 2021.03.24 @ 11:23:06 End 2021.03.24 @ 11:31:41 Sessions 1 Manual Loads 0 Difficulty Rogue Special Mode None Game No. 228 Rogue 75 Adventurer 148 Explorer 5 Win Type - Total 1 Types 1/0/0/0/0/0/0/0/0 Lore% 55 Gallery% 64 Achievement% 51 Wizard Run 0 Options --------- ASCII 0 Keyboard 0 Movement Numpad Keybinds 0 Fullscreen 1 Font 14/X11 Map View 84x54 Tactical HUD 1 Map Filters NONE Filters NONE Steam 1 RUN: c5b049a1-b94e-4f10-8f73-009bdb101a14